bitfinex/quotes_BTCUSD_20250527
["timestamp","ask_amount","ask_price","bid_price","bid_amount"]
[1748361217823,0.23492722,110100.0,110090.0,3.14349881]
[1748361218045,0.23492722,110100.0,110090.0,2.87065281]
[1748361218262,0.20982722,110100.0,110090.0,3.14471681]
[1748361218519,0.20982722,110100.0,110090.0,4.45671981]
[1748361218753,0.20982722,110100.0,110090.0,4.44130681]
[1748361218989,0.20982722,110100.0,110090.0,4.45705681]
[1748361219204,0.20982722,110100.0,110090.0,4.62513281]
[1748361219421,0.20982722,110100.0,110090.0,3.35203081]
[1748361219645,0.20982722,110100.0,110090.0,3.35222581]
[1748361219877,0.20982722,110100.0,110090.0,3.49537981]
[1748361220104,0.20754737,110110.0,110090.0,3.85677654]
[1748361220345,0.18174737,110110.0,110100.0,4.33060624]
[1748361220565,0.05304192,110120.0,110100.0,3.87218847]
[1748361220786,0.05304192,110120.0,110110.0,3.69916872]
[1748361221052,0.04396092,110120.0,110110.0,4.28080526]
[1748361221270,0.05304167,110120.0,110110.0,3.98244872]
[1748361221490,0.05304167,110120.0,110110.0,4.00769537]
[1748361221712,0.05353658,110120.0,110110.0,4.55716709]
[1748361221927,0.05353658,110120.0,110110.0,5.13880363]
[1748361222144,0.00049491,110120.0,110110.0,5.18058895]
[1748361222364,0.00049491,110120.0,110110.0,7.6522459]
[1748361222365,0.00249491,110120.0,110110.0,7.6522459]
[1748361222576,0.00249491,110120.0,110110.0,7.6794789]
[1748361223011,0.00249491,110120.0,110110.0,7.13000718]
[1748361223221,0.00249491,110120.0,110110.0,7.6794789]
[1748361223440,0.00249491,110120.0,110110.0,7.13000718]
[1748361223691,0.00249491,110120.0,110110.0,7.6794789]
[1748361223915,0.01157525,110120.0,110110.0,7.6794789]
[1748361224170,0.00249491,110120.0,110110.0,7.69320308]
[1748361224388,0.00149491,110120.0,110110.0,7.69320308]
[1748361224601,0.01057517,110120.0,110110.0,7.69420308]
[1748361224820,0.00957517,110120.0,110110.0,7.69420308]
[1748361225057,0.00957517,110120.0,110110.0,7.69520308]
[1748361225303,0.00049491,110120.0,110110.0,7.69520308]
[1748361225582,0.02773642,110120.0,110110.0,4.79633106]
[1748361225804,0.02773642,110120.0,110110.0,4.77163179]
[1748361226032,0.03681709,110120.0,110110.0,4.79873179]
[1748361226250,0.03681709,110120.0,110110.0,7.16801979]
[1748361226466,0.03681709,110120.0,110110.0,7.71749151]
[1748361226692,0.04589801,110120.0,110110.0,7.71749151]
[1748361226906,0.22751806,110120.0,110110.0,7.16801988]
[1748361227122,0.2184378,110120.0,110110.0,7.16801988]
[1748361227378,0.2275188,110120.0,110110.0,7.16801988]
[1748361227599,0.02773683,110120.0,110110.0,7.16801988]
[1748361227813,0.00049491,110120.0,110110.0,7.72657284]
[1748361228045,0.02773642,110120.0,110110.0,7.72657284]
[1748361228293,0.02773626,110120.0,110110.0,7.72657284]
[1748361228519,0.03681693,110120.0,110110.0,7.72657284]
[1748361228782,0.03681693,110120.0,110110.0,7.7174916]
[1748361228783,0.21843698,110120.0,110110.0,7.7174916]
[1748361229004,0.0277361,110120.0,110110.0,7.72657284]
[1748361229224,0.03681685,110120.0,110110.0,7.72657284]
[1748361229436,0.04589777,110120.0,110110.0,7.7174916]
[1748361229662,0.04589851,110120.0,110110.0,7.71749168]
[1748361229882,0.03681751,110120.0,110110.0,7.72657301]
[1748361230116,0.03681742,110120.0,110110.0,7.72657243]
[1748361230346,0.03681742,110120.0,110110.0,7.69932845]
[1748361230347,0.21843813,110120.0,110110.0,7.69932845]
[1748361230566,0.19119596,110120.0,110110.0,2.05447367]
[1748361230778,0.19119596,110120.0,110110.0,2.07263706]
[1748361231241,0.19119596,110120.0,110110.0,2.62210878]
[1748361231692,0.19119596,110120.0,110110.0,7.67210878]
[1748361231924,0.19119596,110120.0,110110.0,7.66302721]
[1748361232147,0.19119596,110120.0,110110.0,7.13171872]
[1748361232365,0.19119596,110120.0,110110.0,6.89733713]
[1748361233017,0.19119596,110120.0,110110.0,7.08805549]
[1748361233243,0.18211496,110120.0,110110.0,6.89733713]
[1748361233463,0.18211496,110120.0,110110.0,6.37813413]
[1748361233464,0.20831496,110120.0,110110.0,6.37813413]
[1748361233696,0.20831496,110120.0,110110.0,6.82179913]
[1748361233915,0.20831496,110120.0,110110.0,6.77669613]
[1748361234125,0.18211496,110120.0,110110.0,6.77669613]
[1748361234789,0.18211496,110120.0,110110.0,3.81162778]
[1748361234790,0.23761496,110120.0,110110.0,3.81162778]
[1748361235048,0.32866891,110120.0,110110.0,0.002]
[1748361235246,0.32866891,110120.0,110110.0,0.55147172]
[1748361235462,0.32866891,110120.0,110110.0,0.60661889]
[1748361235463,0.23761496,110120.0,110110.0,0.60661889]
[1748361235952,0.23761496,110120.0,110110.0,0.54947172]
[1748361236169,0.23861496,110120.0,110110.0,0.54947172]
[1748361236677,0.23861496,110120.0,110100.0,0.88947172]
[1748361236678,0.23685147,110110.0,110100.0,0.88947172]
[1748361236910,0.23685147,110110.0,110100.0,1.03517872]
[1748361237140,0.23685147,110110.0,110100.0,1.04788133]
[1748361237386,0.23685147,110110.0,110100.0,1.13893528]
[1748361237869,0.32790542,110110.0,110100.0,0.88947172]
[1748361238342,0.32890542,110110.0,110100.0,0.34]
[1748361238556,0.32890542,110110.0,110100.0,0.88947172]
[1748361241669,0.61202542,110110.0,110100.0,0.54947172]
[1748361242331,0.25491775,110100.0,110090.0,0.90232838]
[1748361242549,0.3459717,110100.0,110090.0,0.99338233]
[1748361242791,0.3459717,110100.0,110090.0,0.88947172]
[1748361243665,0.3479717,110100.0,110090.0,0.88947172]
[1748361243891,0.3499717,110100.0,110090.0,0.88947172]
[1748361245060,0.3499717,110100.0,110090.0,0.90202964]
[1748361245061,0.23191775,110100.0,110090.0,0.90202964]
[1748361245278,0.20381775,110100.0,110090.0,2.10959159]
[1748361245514,0.20381775,110100.0,110090.0,2.01281859]
[1748361245968,0.20381775,110100.0,110090.0,2.00054959]
[1748361246235,0.20381775,110100.0,110050.0,0.04183461]
[1748361246236,0.19989038,110060.0,110050.0,0.04183461]
[1748361246454,0.19989038,110060.0,110050.0,2.26727756]
[1748361246738,0.19989038,110060.0,110050.0,3.42218156]
[1748361246967,0.19989038,110060.0,110050.0,5.65538336]
[1748361247180,0.19989038,110060.0,110050.0,6.03965601]
[1748361247396,0.19989038,110060.0,110050.0,6.34314573]
[1748361247612,0.19989038,110060.0,110050.0,3.38129364]
[1748361247829,0.19989038,110060.0,110050.0,3.78129364]
[1748361248260,0.19989038,110060.0,110050.0,4.49400564]
[1748361248915,0.19989038,110060.0,110050.0,4.49800564]
[1748361249140,0.19989038,110060.0,110050.0,5.31487564]
[1748361249361,0.18170255,110070.0,110060.0,0.38134085]
[1748361249577,0.18171493,110080.0,110070.0,0.04134085]
[1748361249796,0.18171493,110080.0,110070.0,6.40671669]
[1748361249797,0.0090838,110080.0,110070.0,6.40671669]
[1748361250032,0.01816637,110090.0,110080.0,0.34]
[1748361250262,0.20891971,110090.0,110080.0,6.24208644]
[1748361250542,0.20891971,110090.0,110080.0,5.58323261]
[1748361250765,0.20891971,110090.0,110080.0,5.80618136]
[1748361250766,0.22708541,110090.0,110080.0,5.80618136]
[1748361251014,0.00908281,110090.0,110080.0,5.82434921]
[1748361251259,0.21800202,110090.0,110080.0,7.31921029]
[1748361251500,0.20891921,110090.0,110080.0,7.31012641]
[1748361251743,0.19075301,110090.0,110080.0,7.30104236]
[1748361252659,0.18166954,110090.0,110080.0,5.45085653]
[1748361252883,0.18166954,110090.0,110080.0,5.45081653]
[1748361253128,0.18166954,110090.0,110080.0,5.48680074]
[1748361253339,0.18266954,110090.0,110080.0,2.26068674]
[1748361253565,0.18266954,110090.0,110080.0,2.03493219]
[1748361253785,0.18166954,110090.0,110080.0,2.61410867]
[1748361254004,0.18166954,110090.0,110080.0,2.18050667]
[1748361254503,0.18166954,110090.0,110080.0,1.71625967]
[1748361255401,0.21016954,110090.0,110080.0,1.74024767]
[1748361256316,0.21016954,110090.0,110080.0,1.65381767]
[1748361256529,0.18166954,110090.0,110080.0,2.22998939]
[1748361256756,0.18166954,110090.0,110080.0,5.02501119]
[1748361257199,0.18166954,110090.0,110080.0,5.42501119]
[1748361257430,0.18166954,110090.0,110080.0,5.05722551]
[1748361257650,0.18166954,110090.0,110080.0,5.94523019]
[1748361257881,0.18166954,110090.0,110080.0,4.05483447]
[1748361258104,0.18166954,110090.0,110080.0,1.99882672]
[1748361258594,0.18166954,110090.0,110080.0,1.97046372]
[1748361258804,0.18166954,110090.0,110080.0,1.90979272]
[1748361259728,0.18166954,110090.0,110080.0,0.97879172]
[1748361259960,0.18166954,110090.0,110080.0,2.05099272]
[1748361260191,0.18166954,110090.0,110080.0,2.14204667]
[1748361260670,0.24144533,110090.0,110080.0,0.89643195]
[1748361260881,0.23916954,110090.0,110080.0,0.89643195]
[1748361261099,0.21036954,110090.0,110080.0,1.44590367]
[1748361264372,0.18166954,110090.0,110080.0,2.65523467]
[1748361264586,0.18166954,110090.0,110080.0,2.64480367]
[1748361265043,0.18166954,110090.0,110080.0,2.67120367]
[1748361265690,0.18166954,110090.0,110080.0,3.02039867]
[1748361266381,0.18166954,110090.0,110080.0,3.70347867]
[1748361266588,0.18166954,110090.0,110080.0,4.04035067]
[1748361267053,0.18166954,110090.0,110080.0,4.69541719]
[1748361267495,0.18166954,110090.0,110080.0,4.14594547]
[1748361267718,0.18166954,110090.0,110080.0,3.66627047]
[1748361267934,0.18166954,110090.0,110080.0,3.60129647]
[1748361268152,0.18166954,110090.0,110080.0,3.54520347]
[1748361268784,0.18166954,110090.0,110080.0,3.39848647]
[1748361269196,0.18166954,110090.0,110080.0,3.94795819]
[1748361269608,0.18166954,110090.0,110080.0,7.15147419]
[1748361269846,0.18166954,110090.0,110080.0,6.30659619]
[1748361270705,0.18166954,110090.0,110080.0,7.42387219]
[1748361272239,0.18163654,110110.0,110100.0,0.38646488]
[1748361272479,0.1907182,110110.0,110100.0,5.78211562]
[1748361272698,0.1907182,110110.0,110100.0,6.84214258]
[1748361272921,0.1907182,110110.0,110100.0,6.92949162]
[1748361273147,0.1907182,110110.0,110100.0,6.83321961]
[1748361273375,0.1907182,110110.0,110100.0,6.59637253]
[1748361273613,0.19121311,110110.0,110100.0,6.77802557]
[1748361273846,0.19121311,110110.0,110100.0,6.97471322]
[1748361274066,0.18213145,110110.0,110100.0,3.15883958]
[1748361274284,0.18213145,110110.0,110100.0,3.18523958]
[1748361274492,0.18213145,110110.0,110100.0,3.46702922]
[1748361274732,0.18213145,110110.0,110100.0,6.80456122]
[1748361274950,0.18213145,110110.0,110100.0,4.45051053]
[1748361275637,0.18213145,110110.0,110100.0,4.35532766]
[1748361275862,0.18213145,110110.0,110100.0,4.57035366]
[1748361276082,0.18213145,110110.0,110100.0,4.53479666]
[1748361276925,0.18213145,110110.0,110100.0,4.84717766]
[1748361277187,0.18213145,110110.0,110100.0,4.81822266]
[1748361277934,0.18213145,110110.0,110100.0,4.72608166]
[1748361278157,0.21140724,110110.0,110100.0,1.44385772]
[1748361278380,0.23773145,110110.0,110100.0,1.04343772]
[1748361278841,0.23773145,110110.0,110100.0,1.44343772]
[1748361280392,0.23773145,110110.0,110100.0,1.04343772]
[1748361280610,0.23773145,110110.0,110100.0,1.13196146]
[1748361281381,0.23773145,110110.0,110100.0,0.001]
[1748361281382,0.6117454,110110.0,110100.0,0.001]
[1748361281554,0.62022299,110110.0,110100.0,0.001]
[1748361281776,0.6117454,110110.0,110100.0,0.001]
[1748361282209,0.67022299,110110.0,110100.0,0.001]
[1748361282423,0.76127763,110110.0,110100.0,0.001]
[1748361282639,0.19985405,110080.0,110070.0,1.28067172]
[1748361282857,0.25395405,110080.0,110070.0,0.65771172]
[1748361283071,0.25395405,110080.0,110070.0,0.56947172]
[1748361283491,0.25395405,110080.0,110070.0,0.90947172]
[1748361283711,0.25395405,110080.0,110070.0,1.00052567]
[1748361284144,0.22785405,110080.0,110070.0,0.96617781]
[1748361284365,0.20085405,110080.0,110070.0,0.96617781]
[1748361284590,0.20185405,110080.0,110070.0,0.96617781]
[1748361285514,0.20185405,110080.0,110070.0,0.99297781]
[1748361286818,0.20185405,110080.0,110070.0,2.14001681]
[1748361287054,0.20185405,110080.0,110070.0,2.27221161]
[1748361287728,0.20185405,110080.0,110070.0,4.81005761]
[1748361288581,0.20185405,110080.0,110070.0,5.19204461]
[1748361288799,0.20185405,110080.0,110070.0,4.86840561]
[1748361289067,0.20185405,110080.0,110070.0,4.65906261]
[1748361289721,0.20185405,110080.0,110070.0,5.28620961]
[1748361289930,0.20185405,110080.0,110070.0,4.66492061]
[1748361290607,0.20185405,110080.0,110070.0,4.84662316]
[1748361290828,0.20185405,110080.0,110070.0,6.0174352]
[1748361291042,0.20185405,110080.0,110070.0,5.9188342]
[1748361291263,0.20185405,110080.0,110070.0,5.91754416]
[1748361291490,0.02016752,110080.0,110070.0,5.46850767]
[1748361291737,0.18168436,110090.0,110080.0,0.07014085]
[1748361291948,0.18168436,110090.0,110080.0,1.04490845]
[1748361292162,0.18168436,110090.0,110080.0,2.84327745]
[1748361292371,0.18168436,110090.0,110080.0,3.24327745]
[1748361293272,0.18368436,110090.0,110080.0,3.24327745]
[1748361293478,0.18168436,110090.0,110080.0,3.24327745]
[1748361293926,0.18268436,110090.0,110080.0,3.24327745]
[1748361294361,0.18268436,110090.0,110080.0,3.42496349]
[1748361294584,0.01916653,110090.0,110080.0,7.13490034]
[1748361294799,0.21900243,110090.0,110080.0,6.49355248]
[1748361295016,0.21900243,110090.0,110080.0,7.00867642]
[1748361295456,0.02824934,110090.0,110080.0,7.14398414]
[1748361295707,0.18168175,110100.0,110090.0,0.40754085]
[1748361295917,0.18168175,110100.0,110090.0,5.23799361]
[1748361296131,0.18168175,110100.0,110090.0,3.31331161]
[1748361296349,0.18168175,110100.0,110090.0,3.65857861]
[1748361296791,0.18168175,110100.0,110090.0,3.59483261]
[1748361297025,0.18268175,110100.0,110090.0,3.59483261]
[1748361297242,0.18268175,110100.0,110090.0,3.10642461]
[1748361298327,0.18268175,110100.0,110090.0,2.59130075]
[1748361298548,0.18268175,110100.0,110090.0,3.08946861]
[1748361300595,0.18268175,110100.0,110090.0,6.55347261]
[1748361300807,0.18268175,110100.0,110090.0,4.49823861]
[1748361301675,0.18268175,110100.0,110090.0,5.66185361]
[1748361301896,0.1917644,110100.0,110090.0,5.73509415]
[1748361302112,0.2008468,110100.0,110090.0,6.2593014]
[1748361302330,0.2008468,110100.0,110090.0,5.73509415]
[1748361302552,0.2008468,110100.0,110090.0,5.60070262]
[1748361302788,0.2008468,110100.0,110090.0,6.74422562]
[1748361303005,0.2008468,110100.0,110090.0,6.75330884]
[1748361303186,0.1998468,110100.0,110090.0,6.75530884]
[1748361303451,0.1998468,110100.0,110090.0,6.75730884]
[1748361303669,0.1998468,110100.0,110090.0,6.74822562]
[1748361303906,0.1998468,110100.0,110090.0,6.41730901]
[1748361304330,0.1998468,110100.0,110090.0,6.42639232]
[1748361305670,0.1998468,110100.0,110090.0,3.73290261]
[1748361305886,0.1998468,110100.0,110090.0,4.07290261]
[1748361306108,0.1998468,110100.0,110090.0,4.10686319]
[1748361306330,0.1998468,110100.0,110090.0,4.31573273]
[1748361306555,0.1998468,110100.0,110090.0,4.32481612]
[1748361306773,0.1998468,110100.0,110090.0,7.15412612]
[1748361307861,0.19981759,110100.0,110090.0,7.17229273]
[1748361308087,0.20890007,110100.0,110090.0,7.18137579]
[1748361308547,0.18213145,110110.0,110100.0,0.59737645]
[1748361308757,0.18213145,110110.0,110100.0,6.36695602]
[1748361309176,0.18213145,110110.0,110100.0,6.76695602]
[1748361309603,0.18213145,110110.0,110100.0,6.77603867]
[1748361309810,0.18213145,110110.0,110100.0,6.79061423]
[1748361310022,0.18213145,110110.0,110100.0,6.79161423]
[1748361310445,0.18213145,110110.0,110100.0,6.80977927]
[1748361311162,0.18213145,110110.0,110100.0,6.60996119]
[1748361311372,0.18213145,110110.0,110100.0,5.77639054]
[1748361311794,0.18213145,110110.0,110100.0,5.61636954]
[1748361312006,0.18213145,110110.0,110100.0,4.92612454]
[1748361312755,0.18213145,110110.0,110100.0,5.10777758]
[1748361312988,0.18213145,110110.0,110100.0,6.79171423]
[1748361313195,0.18213145,110110.0,110100.0,7.17175671]
[1748361313372,0.18213145,110110.0,110100.0,7.16267423]
[1748361313717,0.18213145,110110.0,110100.0,7.17175671]
[1748361314335,0.18213145,110110.0,110100.0,7.16267423]
[1748361314549,0.18213145,110110.0,110100.0,6.89823523]
[1748361314949,0.18213145,110110.0,110100.0,7.16267423]
[1748361315654,0.18213145,110110.0,110100.0,6.97193854]
[1748361316239,0.18213145,110110.0,110100.0,6.94603854]
[1748361316443,0.18213145,110110.0,110100.0,5.4760691]
[1748361316667,0.18213145,110110.0,110100.0,4.62425354]
[1748361317080,0.18213145,110110.0,110100.0,5.49116554]
[1748361317283,0.18213145,110110.0,110100.0,4.97159954]
[1748361317494,0.18213145,110110.0,110100.0,5.34255954]
[1748361318117,0.18213145,110110.0,110100.0,5.69133454]
[1748361318500,0.18213145,110110.0,110100.0,5.27081454]
[1748361319093,0.18213145,110110.0,110100.0,6.94603854]
[1748361319271,0.18213145,110110.0,110100.0,6.64275254]
[1748361320167,0.18213145,110110.0,110100.0,6.70281554]
[1748361320843,0.18213145,110110.0,110100.0,6.68302854]
[1748361321311,0.20873145,110110.0,110100.0,3.64707559]
[1748361321756,0.18213145,110110.0,110100.0,3.67257559]
[1748361321973,0.18213145,110110.0,110100.0,3.45122954]
[1748361322194,0.18213145,110110.0,110100.0,5.68925854]
[1748361322412,0.18213145,110110.0,110100.0,6.23271854]
[1748361322614,0.18213145,110110.0,110100.0,6.42345414]
[1748361322822,0.18213145,110110.0,110100.0,6.83253654]
[1748361323268,0.18213145,110110.0,110100.0,6.82345414]
[1748361323521,0.00049491,110110.0,110100.0,7.39978545]
[1748361323744,0.00908108,110110.0,110100.0,7.39978545]
[1748361323952,0.01816241,110110.0,110100.0,7.39978545]
[1748361324159,0.02724398,110110.0,110100.0,7.39978545]
[1748361324379,0.0181629,110110.0,110100.0,7.39978545]
[1748361324591,0.01816257,110110.0,110100.0,7.39974545]
[1748361324812,0.0272439,110110.0,110100.0,7.39974545]
[1748361325033,0.01582132,110110.0,110100.0,7.39974545]
[1748361325245,0.1907012,110120.0,110110.0,0.23195913]
[1748361325453,0.1907012,110120.0,110110.0,6.56228523]
[1748361325892,0.1907012,110120.0,110110.0,6.96228523]
[1748361326331,0.1907012,110120.0,110110.0,6.95320349]
[1748361326741,0.18162028,110120.0,110110.0,6.95320349]
[1748361327173,0.19070095,110120.0,110110.0,6.99896688]
[1748361327390,0.19983712,110130.0,110120.0,5.2138049]
[1748361327600,0.19983712,110130.0,110120.0,5.53506847]
[1748361327807,0.19983712,110130.0,110120.0,5.50776847]
[1748361328011,0.19983712,110130.0,110120.0,5.90776847]
[1748361328443,0.19983712,110130.0,110120.0,5.31735347]
[1748361328653,0.22563712,110130.0,110120.0,4.61149147]
[1748361329539,0.22563712,110130.0,110120.0,4.06240703]
[1748361329774,0.22563712,110130.0,110120.0,4.53203303]
[1748361329979,0.25333712,110130.0,110120.0,3.64840518]
[1748361330184,0.25333712,110130.0,110120.0,3.07656418]
[1748361333253,0.22563712,110130.0,110120.0,3.07656418]
[1748361333461,0.19983712,110130.0,110120.0,3.65284862]
[1748361333888,0.19983712,110130.0,110120.0,3.62564862]
[1748361334107,0.22563712,110130.0,110120.0,3.07656418]
[1748361334323,0.22563712,110130.0,110120.0,2.70580418]
[1748361334545,0.25183712,110130.0,110120.0,1.25965018]
[1748361334758,0.25183712,110130.0,110120.0,1.24747518]
[1748361335048,0.25183712,110130.0,110120.0,0.69839074]
[1748361335283,0.25183712,110130.0,110110.0,0.08812932]
[1748361335284,0.21680088,110120.0,110110.0,0.08812932]
[1748361335510,0.24530088,110120.0,110110.0,0.54913376]
[1748361335737,0.24530088,110120.0,110110.0,4.932e-05]
[1748361335979,0.24530088,110120.0,110110.0,0.54913376]
[1748361335980,0.33635483,110120.0,110110.0,0.54913376]
[1748361336649,0.33635483,110120.0,110110.0,0.55013376]
[1748361336873,0.33635483,110120.0,110110.0,0.55113376]
[1748361337102,0.33635483,110120.0,110110.0,0.60614714]
[1748361338003,0.24530088,110120.0,110110.0,0.60614714]
[1748361338937,0.24530088,110120.0,110110.0,0.0570627]
[1748361339158,0.24530088,110120.0,110110.0,0.00204932]
[1748361339389,0.33635483,110120.0,110110.0,0.00204932]
[1748361340320,0.61899483,110120.0,110110.0,0.00204932]
[1748361342278,0.33635483,110120.0,110110.0,0.00204932]
[1748361345116,0.33635483,110120.0,110110.0,4.932e-05]
[1748361345773,0.67635483,110120.0,110110.0,4.932e-05]
[1748361350768,0.95895483,110120.0,110110.0,4.932e-05]
[1748361350984,0.64785483,110120.0,110110.0,4.932e-05]
[1748361352290,0.30785483,110120.0,110110.0,4.932e-05]
[1748361352780,0.33545483,110120.0,110110.0,4.932e-05]
[1748361354520,0.30785483,110120.0,110110.0,4.932e-05]
[1748361354728,0.33405483,110120.0,110110.0,4.932e-05]
[1748361355799,0.30785483,110120.0,110110.0,4.932e-05]
[1748361360784,0.30785483,110120.0,110110.0,2.18538776]
[1748361360785,0.19070088,110120.0,110110.0,2.18538776]
[1748361360998,0.19070088,110120.0,110110.0,2.09958071]
[1748361361648,0.19070088,110120.0,110110.0,2.49958071]
[1748361362141,0.19070088,110120.0,110110.0,2.78214071]
[1748361364835,0.19070088,110120.0,110110.0,2.49958071]
[1748361365080,0.19070088,110120.0,110110.0,1.44180671]
[1748361365309,0.19070088,110120.0,110110.0,0.76854232]
[1748361366422,0.19070088,110120.0,110110.0,1.31762676]
[1748361369235,0.19070088,110120.0,110110.0,0.94907744]
[1748361370744,0.19070088,110120.0,110110.0,0.97727744]
[1748361370953,0.19070088,110120.0,110110.0,1.06833139]
[1748361371397,0.19070088,110120.0,110110.0,1.04013139]
[1748361371638,0.19070088,110120.0,110110.0,1.06853139]
[1748361372368,0.19070088,110120.0,110110.0,1.09603139]
[1748361373437,0.19070088,110120.0,110110.0,0.49104695]
[1748361373673,0.19981775,110100.0,110090.0,1.03134444]
[1748361373884,0.19981775,110100.0,110090.0,1.06739935]
[1748361374320,0.19981775,110100.0,110090.0,1.09779935]
[1748361374566,0.19981775,110100.0,110090.0,1.1888533]
[1748361374994,0.19981775,110100.0,110090.0,1.1908533]
[1748361375213,0.19981775,110100.0,110090.0,1.1928533]
[1748361377800,0.19981775,110100.0,110090.0,1.5928533]
[1748361378034,0.19981775,110100.0,110090.0,6.6249281]
[1748361378464,0.19981775,110100.0,110090.0,6.80659764]
[1748361378673,0.19981775,110100.0,110090.0,6.81568111]
[1748361378887,0.19981775,110100.0,110090.0,7.17384764]
[1748361379102,0.19981775,110100.0,110090.0,7.1647645]
[1748361379773,0.19981775,110100.0,110090.0,7.17384781]
[1748361379989,0.19981775,110100.0,110090.0,7.18293103]
[1748361380653,0.19073552,110100.0,110090.0,7.1647645]
[1748361382063,0.18165304,110100.0,110090.0,4.1669041]
[1748361382267,0.18165304,110100.0,110090.0,3.58385715]
[1748361383084,0.18165304,110100.0,110090.0,5.40000115]
[1748361383319,0.18165304,110100.0,110090.0,4.32344815]
[1748361383530,0.18165304,110100.0,110090.0,1.32930735]
[1748361383746,0.18392883,110100.0,110090.0,1.61170735]
[1748361384156,0.18165304,110100.0,110090.0,1.66437635]
[1748361384915,0.18165304,110100.0,110090.0,2.61620135]
[1748361385112,0.18165304,110100.0,110090.0,2.7072553]
[1748361385480,0.18165304,110100.0,110090.0,2.6940613]
[1748361386071,0.18165304,110100.0,110090.0,1.0149133]
[1748361386283,0.18165304,110100.0,110090.0,2.7072553]
[1748361386854,0.18165304,110100.0,110090.0,2.2231523]
[1748361387078,0.18165304,110100.0,110090.0,2.5934323]
[1748361387285,0.18165304,110100.0,110090.0,2.6466323]
[1748361387925,0.18165304,110100.0,110090.0,3.0466323]
[1748361388080,0.18165304,110100.0,110090.0,4.4177053]
[1748361388258,0.18165304,110100.0,110090.0,4.0288633]
[1748361388463,0.18392883,110100.0,110090.0,3.6674163]
[1748361388672,0.18392883,110100.0,110090.0,3.6220613]
[1748361389095,0.18392883,110100.0,110090.0,3.6361323]
[1748361389515,0.18392883,110100.0,110090.0,2.56312186]
[1748361389724,0.18392883,110100.0,110090.0,2.8744523]
[1748361390129,0.18392883,110100.0,110090.0,3.1264003]
[1748361390354,0.18392883,110100.0,110090.0,3.0898643]
[1748361391201,0.18392883,110100.0,110090.0,3.1267563]
[1748361392050,0.18392883,110100.0,110090.0,3.1247563]
[1748361392297,0.18392883,110100.0,110090.0,3.2890763]
[1748361392530,0.18392883,110100.0,110090.0,3.1975383]
[1748361392758,0.18392883,110100.0,110090.0,3.1317013]
[1748361392976,0.18392883,110100.0,110090.0,1.80492035]
[1748361393234,0.23822883,110100.0,110090.0,1.26428235]
[1748361393449,0.23595304,110100.0,110090.0,1.26528235]
[1748361394328,0.23595304,110100.0,110090.0,1.55789235]
[1748361394810,0.23595304,110100.0,110090.0,1.54386735]
[1748361395208,0.23595304,110100.0,110090.0,1.6349213]
[1748361395412,0.23595304,110100.0,110090.0,1.5470413]
[1748361395637,0.18165304,110100.0,110090.0,1.5470413]
[1748361395866,0.18165304,110100.0,110090.0,1.5752413]
[1748361396323,0.18165304,110100.0,110090.0,1.5470413]
[1748361396541,0.18392883,110100.0,110090.0,1.5470413]
[1748361397477,0.21092883,110100.0,110090.0,0.91911335]
[1748361397724,0.20865304,110100.0,110090.0,0.77967035]
[1748361398413,0.20865304,110100.0,110090.0,0.55157935]
[1748361398641,0.20865304,110100.0,110090.0,0.65752335]
[1748361398855,0.18165304,110100.0,110090.0,0.65752335]
[1748361399105,0.18392883,110100.0,110090.0,0.65752335]
[1748361400493,0.18392883,110100.0,110090.0,0.7485773]
[1748361402014,0.18392883,110100.0,110090.0,0.7475773]
[1748361402230,0.18392883,110100.0,110090.0,0.7465773]
[1748361403710,0.18392883,110100.0,110090.0,0.65552335]
[1748361404717,0.18392883,110100.0,110090.0,0.99552335]
[1748361405461,0.18392883,110100.0,110090.0,0.44643891]
[1748361405682,0.18392883,110100.0,110090.0,1.05930682]
[1748361405902,0.18392883,110100.0,110090.0,1.05022335]
[1748361406127,0.18392883,110100.0,110090.0,1.1412773]
[1748361406807,0.18165304,110100.0,110090.0,0.50113891]
[1748361407016,0.18392883,110100.0,110090.0,0.99552335]
[1748361408152,0.18392883,110100.0,110090.0,1.29202335]
[1748361409230,0.23642883,110100.0,110090.0,0.40293891]
[1748361409453,0.23415304,110100.0,110090.0,0.34049491]
[1748361412117,0.36678745,110100.0,110090.0,0.00049491]
[1748361412327,0.32520699,110100.0,110090.0,0.00049491]
[1748361412763,0.60744699,110100.0,110090.0,0.00049491]
[1748361418636,1.16953143,110100.0,110090.0,0.00049491]
[1748361419073,1.17053143,110100.0,110090.0,0.00049491]
[1748361419299,1.25833143,110100.0,110090.0,0.00049491]
[1748361419507,1.34938538,110100.0,110090.0,0.00049491]
[1748361419975,0.62483451,110100.0,110090.0,0.00049491]
[1748361422169,0.32920699,110100.0,110090.0,0.00049491]
[1748361422390,0.61144699,110100.0,110090.0,0.00049491]
[1748361424599,0.32920699,110100.0,110090.0,0.00049491]
[1748361427158,0.27670699,110100.0,110090.0,0.00049491]
[1748361429006,0.30320699,110100.0,110090.0,0.00049491]
[1748361429432,0.27670699,110100.0,110090.0,0.00049491]
[1748361433175,0.30420699,110100.0,110090.0,0.00049491]
[1748361433394,0.96041728,110100.0,110090.0,0.00049491]
[1748361433639,0.88089143,110100.0,110090.0,0.00049491]
[1748361434252,0.33180699,110100.0,110090.0,0.00049491]
[1748361434469,0.32780699,110100.0,110090.0,0.00049491]
[1748361434682,0.33080699,110100.0,110090.0,0.00049491]
[1748361435114,0.42586094,110100.0,110090.0,0.00049491]
[1748361435549,0.27970699,110100.0,110090.0,0.00049491]
[1748361435777,0.27970699,110100.0,110090.0,0.94397935]
[1748361435778,0.18865304,110100.0,110090.0,0.94397935]
[1748361437305,0.18465304,110100.0,110090.0,4.71539735]
[1748361437544,0.18465304,110100.0,110090.0,3.54400735]
[1748361437759,0.18565304,110100.0,110090.0,3.30891935]
[1748361437981,0.18265304,110100.0,110090.0,3.3392073]
[1748361438202,0.18592883,110100.0,110090.0,3.3392073]
[1748361438413,0.18592883,110100.0,110090.0,5.1495743]
[1748361438628,0.18592883,110100.0,110090.0,2.8361903]
[1748361438921,0.18592883,110100.0,110090.0,3.2361903]
[1748361439363,0.18592883,110100.0,110090.0,3.5436973]
[1748361440555,0.18592883,110100.0,110090.0,3.7804593]
[1748361440730,0.18592883,110100.0,110090.0,2.82936986]
[1748361440974,0.18592883,110100.0,110090.0,3.3784543]
[1748361441623,0.18592883,110100.0,110090.0,3.8349523]
[1748361441836,0.18592883,110100.0,110090.0,4.2742053]
[1748361442043,0.18592883,110100.0,110090.0,4.3112183]
[1748361442259,0.18592883,110100.0,110090.0,4.0487463]
[1748361442715,0.18592883,110100.0,110090.0,3.8941663]
[1748361443355,0.18592883,110100.0,110090.0,4.0001253]
[1748361444006,0.18592883,110100.0,110090.0,3.45104086]
[1748361444227,0.18592883,110100.0,110090.0,3.8978253]
[1748361444445,0.18592883,110100.0,110090.0,4.0684893]
[1748361444658,0.18592883,110100.0,110090.0,4.0164133]
[1748361445577,0.18592883,110100.0,110090.0,4.5454093]
[1748361445797,0.18592883,110100.0,110090.0,4.1648863]
[1748361446019,0.18592883,110100.0,110090.0,2.2540173]
[1748361446659,0.18592883,110100.0,110090.0,2.5505173]
[1748361446913,0.18592883,110100.0,110090.0,1.77299186]
[1748361448574,0.18592883,110100.0,110090.0,1.45402391]